[Event "US College Final 4-ch"]
[Site "New York"]
[Date "2015.03.28"]
[Round "2"]
[White "Kritz, Leonid"]
[Black "Robson, Ray"]
[Result "0-1"]
[ECO "B50"]
[WhiteElo "2583"]
[BlackElo "2656"]
[Annotator "Robot 1"]
[PlyCount "62"]
[EventDate "2015.??.??"]
[EventCountry "USA"]
[WhiteTeam "UT Dallas"]
[BlackTeam "Webster University"]
[TimeControl "5400+30"]

1. e4 {[%emt 0:00:00]} c5 {[%emt 0:00:00]} 2. Nf3 {[%emt 0:00:00]} d6 {[%emt 0:
00:34]} 3. c3 {[%emt 0:00:00]} Nf6 {[%emt 0:01:09]} 4. Bd3 {[%emt 0:00:00]} g6
{[%emt 0:05:25]} 5. Bc2 {[%emt 0:00:24]} Bg7 {[%emt 0:03:38]} 6. h3 {[%emt 0:
00:50]} e5 {[%emt 0:07:23]} 7. d4 {[%emt 0:01:28]} cxd4 {[%emt 0:01:14]} 8.
cxd4 {[%emt 0:00:05]} exd4 {[%emt 0:00:40]} 9. Nxd4 {[%emt 0:08:29]} d5 {[%emt
0:06:21]} 10. exd5 {[%emt 0:12:37]} O-O {[%emt 0:02:45]} 11. O-O {[%emt 0:01:
24]} Nxd5 {[%emt 0:00:30]} 12. Bb3 {[%emt 0:05:59]} Na6 {[%emt 0:18:54]} 13.
Nc3 {[%emt 0:09:33]} Nxc3 {[%emt 0:09:21]} 14. bxc3 {[%emt 0:00:12]} Nc5 {
[%emt 0:00:35]} 15. Bc4 {[%emt 0:00:26]} b6 {[%emt 0:02:33]} 16. Be3 {[%emt 0:
06:57]} Bb7 {[%emt 0:01:40]} 17. Qe2 {[%emt 0:08:17]} Qc7 {[%emt 0:04:20]} 18.
Rfd1 {[%emt 0:02:53]} a6 {[%emt 0:02:03]} 19. a4 {[%emt 0:05:39]} Rfe8 {[%emt
0:07:39]} 20. Qb2 {[%emt 0:15:31]} Ne4 {[%emt 0:08:01]} 21. Bf1 {[%emt 0:00:05]
} Nxc3 {[%emt 0:03:14]} 22. Rdc1 {[%emt 0:00:45]} Rac8 {[%emt 0:00:18]} 23. Kh1
{[%emt 0:04:52]} Be5 {[%emt 0:03:30]} 24. Nf3 {[%emt 0:00:22]} Bxf3 {[%emt 0:
01:43]} 25. gxf3 {[%emt 0:00:03]} Qd7 {[%emt 0:04:33]} 26. Qb3 {[%emt 0:04:08]}
Qf5 {[%emt 0:01:18]} 27. f4 {[%emt 0:00:22]} Bd4 {[%emt 0:02:43]} 28. Bxd4 {
[%emt 0:01:46]} Qe4+ {[%emt 0:00:02]} 29. Kg1 {[%emt 0:00:04]} Qxd4 {[%emt 0:
00:08]} 30. Bxa6 {[%emt 0:00:02]} Rc5 {[%emt 0:01:24]} 31. Bf1 {[%emt 0:02:26]}
Re2 {[%emt 0:00:38]} 0-1

[Event "US College Final 4-ch"]
[Site "New York"]
[Date "2015.03.28"]
[Round "2"]
[White "Le, Quang Liem"]
[Black "Margvelashvili, George"]
[Result "1-0"]
[ECO "E00"]
[WhiteElo "2676"]
[BlackElo "2618"]
[Annotator "Robot 1"]
[PlyCount "75"]
[EventDate "2015.??.??"]
[EventCountry "USA"]
[WhiteTeam "Webster University"]
[BlackTeam "UT Dallas"]
[TimeControl "5400+30"]

1. d4 {[%emt 0:00:00]} e6 {[%emt 0:00:00]} 2. c4 {[%emt 0:00:00]} Bb4+ {[%emt
0:00:00]} 3. Nd2 {[%emt 0:01:54]} c5 {[%emt 0:03:32]} 4. Ngf3 {[%emt 0:04:25]}
cxd4 {[%emt 0:00:44]} 5. Nxd4 {[%emt 0:00:54]} Nf6 {[%emt 0:01:00]} 6. g3 {
[%emt 0:05:15]} Nc6 {[%emt 0:10:15]} 7. Nc2 {[%emt 0:00:29]} Be7 {[%emt 0:00:
11]} 8. Bg2 {[%emt 0:00:13]} O-O {[%emt 0:00:54]} 9. O-O {[%emt 0:00:26]} b6 {
[%emt 0:00:52]} 10. b4 {[%emt 0:04:13]} Bb7 {[%emt 0:02:35]} 11. Bb2 {[%emt 0:
00:23]} d5 {[%emt 0:05:45]} 12. a3 {[%emt 0:00:38]} dxc4 {[%emt 0:06:24]} 13.
Nxc4 {[%emt 0:00:16]} Qc7 {[%emt 0:17:30]} 14. Rc1 {[%emt 0:03:56]} Rad8 {
[%emt 0:30:26]} 15. Qe1 {[%emt 0:00:21]} b5 {[%emt 0:00:18]} 16. Nd2 {[%emt 0:
05:17]} Qb8 {[%emt 0:00:35]} 17. Nb3 {[%emt 0:05:22]} Nd5 {[%emt 0:02:01]} 18.
Nc5 {[%emt 0:25:57]} Ba8 {[%emt 0:01:03]} 19. Ne3 {[%emt 0:03:28]} Nxe3 {[%emt
0:01:45]} 20. fxe3 {[%emt 0:00:12]} Qb6 {[%emt 0:03:06]} 21. Qc3 {[%emt 0:04:
57]} e5 {[%emt 0:00:03]} 22. Rfd1 {[%emt 0:02:08]} Bxc5 {[%emt 0:04:35]} 23.
bxc5 {[%emt 0:00:44]} Qc7 {[%emt 0:02:10]} 24. Rd6 {[%emt 0:00:26]} Rde8 {
[%emt 0:00:10]} 25. Rcd1 {[%emt 0:01:47]} Re7 {[%emt 0:00:06]} 26. Qd3 {[%emt
0:07:31]} a6 {[%emt 0:01:20]} 27. Qf5 {[%emt 0:04:16]} Na5 {[%emt 0:01:25]} 28.
Bxa8 {[%emt 0:01:43]} Rxa8 {[%emt 0:00:09]} 29. Bxe5 {[%emt 0:01:56]} Qxc5 {
[%emt 0:03:30]} 30. Rd8+ {[%emt 0:03:56]} Re8 {[%emt 0:00:01]} 31. R1d7 {[%emt
0:00:24]} Qxe3+ {[%emt 0:01:05]} 32. Kf1 {[%emt 0:04:22]} Qc1+ {[%emt 0:00:28]}
33. Kf2 {[%emt 0:00:32]} Qc4 {[%emt 0:02:00]} 34. Qg5 {[%emt 0:03:31]} Qc5+ {
[%emt 0:00:04]} 35. Kf1 {[%emt 0:00:44]} Qf8 {[%emt 0:00:39]} 36. Rxe8 {[%emt
0:00:14]} Rxe8 {[%emt 0:00:10]} 37. Bd6 {[%emt 0:00:08]} h6 {[%emt 0:00:04]}
38. Qc5 1-0

[Event "US College Final 4-ch"]
[Site "New York"]
[Date "2015.03.28"]
[Round "2"]
[White "Nyzhnyk, Illya"]
[Black "Holt, Conrad"]
[Result "1/2-1/2"]
[ECO "D23"]
[WhiteElo "2622"]
[BlackElo "2530"]
[Annotator "Robot 1"]
[PlyCount "92"]
[EventDate "2015.??.??"]
[EventCountry "USA"]
[WhiteTeam "Webster University"]
[BlackTeam "UT Dallas"]
[TimeControl "5400+30"]

1. d4 {[%emt 0:00:00]} d5 {[%emt 0:00:00]} 2. c4 {[%emt 0:00:00]} c6 {[%emt 0:
00:00]} 3. Nf3 {[%emt 0:00:00]} Nf6 {[%emt 0:00:00]} 4. Qc2 {[%emt 0:00:00]}
dxc4 {[%emt 0:00:00]} 5. Qxc4 {[%emt 0:00:00]} Bg4 {[%emt 0:00:04]} 6. Nbd2 {
[%emt 0:00:05]} Nbd7 {[%emt 0:01:18]} 7. g3 {[%emt 0:00:06]} e6 {[%emt 0:00:09]
} 8. Bg2 {[%emt 0:00:03]} Be7 {[%emt 0:00:13]} 9. O-O {[%emt 0:00:06]} O-O {
[%emt 0:00:11]} 10. Ne5 {[%emt 0:00:29]} Bh5 {[%emt 0:00:31]} 11. Nxd7 {[%emt
0:00:12]} Nxd7 {[%emt 0:00:56]} 12. Nb3 {[%emt 0:00:06]} a5 {[%emt 0:00:47]}
13. a4 {[%emt 0:00:05]} Qb6 {[%emt 0:02:34]} 14. e4 {[%emt 0:05:29]} Rfd8 {
[%emt 0:01:49]} 15. Be3 {[%emt 0:01:38]} Qb4 {[%emt 0:12:19]} 16. Qc2 {[%emt 0:
00:38]} e5 {[%emt 0:00:44]} 17. f4 {[%emt 0:19:48]} exd4 {[%emt 0:08:07]} 18.
Bxd4 {[%emt 0:00:05]} Nf6 {[%emt 0:12:35]} 19. Bc3 {[%emt 0:20:05]} Qb6+ {
[%emt 0:00:12]} 20. Kh1 {[%emt 0:00:04]} Ng4 {[%emt 0:01:48]} 21. h3 {[%emt 0:
00:18]} Ne3 {[%emt 0:01:55]} 22. Qf2 {[%emt 0:00:21]} Qxb3 {[%emt 0:00:58]} 23.
Qxe3 {[%emt 0:00:04]} f6 {[%emt 0:00:59]} 24. e5 {[%emt 0:01:23]} Bf7 {[%emt 0:
01:06]} 25. exf6 {[%emt 0:08:51]} Bxf6 {[%emt 0:05:45]} 26. Ra3 {[%emt 0:00:04]
} Qc2 {[%emt 0:02:49]} 27. Be4 {[%emt 0:02:16]} Re8 {[%emt 0:08:09]} 28. Bxc2 {
[%emt 0:02:27]} Rxe3 {[%emt 0:00:09]} 29. Bxf6 {[%emt 0:00:02]} Rxa3 {[%emt 0:
18:54]} 30. bxa3 {[%emt 0:00:06]} gxf6 {[%emt 0:00:06]} 31. Rb1 {[%emt 0:00:08]
} Rb8 {[%emt 0:00:48]} 32. Kg1 {[%emt 0:00:34]} b5 {[%emt 0:06:10]} 33. axb5 {
[%emt 0:03:09]} cxb5 {[%emt 0:01:01]} 34. Kf2 {[%emt 0:00:35]} b4 {[%emt 0:01:
02]} 35. axb4 {[%emt 0:00:45]} Rxb4 {[%emt 0:02:13]} 36. Rxb4 {[%emt 0:00:29]}
axb4 {[%emt 0:00:05]} 37. Ke3 {[%emt 0:00:03]} Kg7 {[%emt 0:04:11]} 38. Bb1 {
[%emt 0:06:27]} Be6 {[%emt 0:01:26]} 39. Kd4 {[%emt 0:00:41]} h5 {[%emt 0:01:
45]} 40. f5 {[%emt 0:04:42]} Bf7 {[%emt 0:00:27]} 41. Bd3 {[%emt 0:01:03]} Kf8
{[%emt 0:01:13]} 42. Bc4 {[%emt 0:00:56]} Bxc4 {[%emt 0:01:58]} 43. Kxc4 {
[%emt 0:00:09]} Ke7 {[%emt 0:00:05]} 44. Kxb4 {[%emt 0:00:15]} Kd6 {[%emt 0:00:
05]} 45. Kc4 {[%emt 0:00:13]} Ke5 {[%emt 0:00:07]} 46. Kd3 {[%emt 0:00:13]}
Kxf5 {[%emt 0:00:09] Ke4+ Ke5+} 1/2-1/2

[Event "US College Final 4-ch"]
[Site "New York"]
[Date "2015.03.28"]
[Round "2"]
[White "Yotov, Valentin"]
[Black "Durarbayli, Yasif"]
[Result "0-1"]
[ECO "D90"]
[WhiteElo "2639"]
[BlackElo "2676"]
[Annotator "Robot 1"]
[PlyCount "78"]
[EventDate "2015.??.??"]
[EventCountry "USA"]
[WhiteTeam "UT Dallas"]
[BlackTeam "Webster University"]
[TimeControl "5400+30"]

1. d4 {[%emt 0:00:00]} Nf6 {[%emt 0:00:00]} 2. c4 {[%emt 0:00:00]} g6 {[%emt 0:
00:00]} 3. Nc3 {[%emt 0:00:00]} d5 {[%emt 0:00:00]} 4. Nf3 {[%emt 0:12:16]} Bg7
{[%emt 0:00:07]} 5. h4 {[%emt 0:00:05]} c6 {[%emt 0:06:18]} 6. Bg5 {[%emt 0:03:
53]} dxc4 {[%emt 0:07:12]} 7. e4 {[%emt 0:03:43]} b5 {[%emt 0:00:06]} 8. e5 {
[%emt 0:06:34]} Nd5 {[%emt 0:02:12]} 9. h5 {[%emt 0:04:01]} h6 {[%emt 0:00:23]}
10. Bd2 {[%emt 0:11:58]} g5 {[%emt 0:00:06]} 11. a4 {[%emt 0:00:21]} Nxc3 {
[%emt 0:01:30]} 12. bxc3 {[%emt 0:04:03]} Na6 {[%emt 0:03:57]} 13. Be2 {[%emt
0:11:53]} Nc7 {[%emt 0:00:15]} 14. Qb1 {[%emt 0:05:07]} Bg4 {[%emt 0:03:27]}
15. Bd1 {[%emt 0:18:52]} Qd7 {[%emt 0:02:26]} 16. Bc2 {[%emt 0:00:51]} a5 {
[%emt 0:16:08]} 17. Nh2 {[%emt 0:01:11]} Be6 {[%emt 0:06:56]} 18. O-O {[%emt 0:
00:03]} Nd5 {[%emt 0:00:03]} 19. Be4 {[%emt 0:06:19]} O-O {[%emt 0:00:38]} 20.
axb5 {[%emt 0:01:50]} cxb5 {[%emt 0:00:15]} 21. f4 {[%emt 0:00:19]} gxf4 {
[%emt 0:00:07]} 22. Bxd5 {[%emt 0:03:33]} Qxd5 {[%emt 0:00:06]} 23. Bxf4 {
[%emt 0:00:30]} b4 {[%emt 0:01:50]} 24. Qc1 {[%emt 0:00:34]} Kh7 {[%emt 0:00:
05]} 25. Qc2+ {[%emt 0:03:14]} f5 {[%emt 0:00:31]} 26. exf6+ {[%emt 0:00:12]}
Bf5 {[%emt 0:00:04]} 27. Qd2 {[%emt 0:00:35]} Bxf6 {[%emt 0:00:08]} 28. Nf3 {
[%emt 0:00:33]} Rg8 {[%emt 0:01:33]} 29. Rf2 {[%emt 0:01:24]} Be4 {[%emt 0:03:
57]} 30. Ne5 {[%emt 0:00:31]} Raf8 {[%emt 0:03:18]} 31. Ng6 {[%emt 0:00:33]}
Bxg6 {[%emt 0:01:35]} 32. hxg6+ {[%emt 0:00:02]} Rxg6 {[%emt 0:00:01]} 33. Be5
{[%emt 0:00:59]} bxc3 {[%emt 0:00:29]} 34. Qc2 {[%emt 0:00:12]} Bxe5 {[%emt 0:
01:27]} 35. Rxf8 {[%emt 0:00:05]} Bxd4+ {[%emt 0:02:34]} 36. Kf1 {[%emt 0:00:
02]} Qh5 {[%emt 0:00:10]} 37. Qe4 {[%emt 0:01:34]} Qh1+ {[%emt 0:00:06]} 38.
Ke2 {[%emt 0:00:01]} Qxg2+ {[%emt 0:00:21]} 39. Qxg2 {[%emt 0:00:02]} Rxg2+ {
[%emt 0:00:12]} 0-1

[Event "US College Final 4-ch"]
[Site "New York"]
[Date "2015.03.28"]
[Round "1"]
[White "Durarbayli, Yasif"]
[Black "Bregadze, Levan"]
[Result "1-0"]
[ECO "B65"]
[WhiteElo "2676"]
[BlackElo "2579"]
[Annotator "Robot 1"]
[PlyCount "51"]
[EventDate "2015.??.??"]
[EventCountry "USA"]
[WhiteTeam "Webster University"]
[BlackTeam "University Maryland"]
[TimeControl "5400+30"]

1. e4 {[%emt 0:00:00]} c5 {[%emt 0:00:00]} 2. Nf3 {[%emt 0:00:00]} d6 {[%emt 0:
00:06]} 3. d4 {[%emt 0:00:00]} cxd4 {[%emt 0:00:24]} 4. Nxd4 {[%emt 0:00:00]}
Nf6 {[%emt 0:00:05]} 5. Nc3 {[%emt 0:00:00]} Nc6 {[%emt 0:00:05]} 6. Bg5 {
[%emt 0:00:03]} e6 {[%emt 0:00:37]} 7. Qd2 {[%emt 0:00:07]} Be7 {[%emt 0:00:06]
} 8. O-O-O {[%emt 0:00:07]} O-O {[%emt 0:00:20]} 9. f4 {[%emt 0:00:11]} Nxd4 {
[%emt 0:02:09]} 10. Qxd4 {[%emt 0:00:40]} Qa5 {[%emt 0:00:02]} 11. e5 {[%emt 0:
00:07]} dxe5 {[%emt 0:00:09]} 12. Qxe5 {[%emt 0:00:03]} Qc5 {[%emt 0:00:09]}
13. Be2 {[%emt 0:03:24]} h6 {[%emt 0:00:44]} 14. Bh4 {[%emt 0:02:37]} a6 {
[%emt 0:15:56]} 15. Bf3 {[%emt 0:04:06]} g5 {[%emt 0:18:21]} 16. Qxc5 {[%emt 0:
03:23]} Bxc5 {[%emt 0:00:16]} 17. fxg5 {[%emt 0:00:05]} Be3+ {[%emt 0:00:07]}
18. Kb1 {[%emt 0:00:03]} hxg5 {[%emt 0:00:08]} 19. Bg3 {[%emt 0:03:54]} g4 {
[%emt 0:07:31]} 20. Be2 {[%emt 0:01:46]} b5 {[%emt 0:03:56]} 21. Be5 {[%emt 0:
13:00]} Nd7 {[%emt 0:02:54]} 22. Bd6 {[%emt 0:02:24]} f5 {[%emt 0:04:55]} 23.
Bxf8 {[%emt 0:01:20]} Kxf8 {[%emt 0:01:18]} 24. h3 {[%emt 0:00:12]} b4 {[%emt
0:00:09]} 25. hxg4 {[%emt 0:00:44]} Nc5 {[%emt 0:02:24]} 26. Bf3 {[%emt 0:01:
38]} 1-0

[Event "US College Final 4-ch"]
[Site "New York"]
[Date "2015.03.28"]
[Round "1"]
[White "Huschenbeth, Niclas"]
[Black "Le, Quang Liem"]
[Result "1/2-1/2"]
[ECO "B48"]
[WhiteElo "2536"]
[BlackElo "2676"]
[Annotator "Robot 1"]
[PlyCount "121"]
[EventDate "2015.??.??"]
[EventCountry "USA"]
[WhiteTeam "University Maryland"]
[BlackTeam "Webster University"]
[TimeControl "5400+30"]

1. e4 {[%emt 0:00:00]} c5 {[%emt 0:00:00]} 2. Nf3 {[%emt 0:00:00]} e6 {[%emt 0:
00:00]} 3. d4 {[%emt 0:00:00]} cxd4 {[%emt 0:00:04]} 4. Nxd4 {[%emt 0:00:00]}
Nc6 {[%emt 0:00:11]} 5. Nc3 {[%emt 0:00:00]} Qc7 {[%emt 0:00:10]} 6. Be3 {
[%emt 0:00:00]} a6 {[%emt 0:00:08]} 7. Qf3 {[%emt 0:00:04]} Nge7 {[%emt 0:01:
24]} 8. Qg3 {[%emt 0:01:07]} Qxg3 {[%emt 0:00:43]} 9. hxg3 {[%emt 0:00:04]}
Nxd4 {[%emt 0:00:21]} 10. Bxd4 {[%emt 0:00:05]} b5 {[%emt 0:00:13]} 11. O-O-O {
[%emt 0:07:36]} Bb7 {[%emt 0:01:18]} 12. Bc5 {[%emt 0:09:09]} Rc8 {[%emt 0:02:
14]} 13. Bd6 {[%emt 0:02:52]} Ng6 {[%emt 0:07:00]} 14. Bxf8 Nxf8 {[%emt 0:08:
33]} 15. Rd4 {[%emt 0:30:29]} e5 {[%emt 0:21:55]} 16. Rd6 {[%emt 0:00:53]} Rc6
{[%emt 0:10:21]} 17. Rd2 {[%emt 0:00:28]} Rc5 {[%emt 0:03:55]} 18. Nd5 {[%emt
0:03:48]} Ne6 {[%emt 0:03:41]} 19. b4 {[%emt 0:04:41]} Rc8 {[%emt 0:00:33]} 20.
Kb2 {[%emt 0:01:33]} d6 {[%emt 0:07:44]} 21. c3 {[%emt 0:03:35]} h5 {[%emt 0:
04:52]} 22. Be2 {[%emt 0:00:57]} g6 {[%emt 0:00:11]} 23. Ra1 {[%emt 0:14:36]}
Bc6 {[%emt 0:06:12]} 24. a4 {[%emt 0:02:38]} bxa4 {[%emt 0:00:33]} 25. Bxa6 {
[%emt 0:00:20]} Rb8 {[%emt 0:00:50]} 26. Bc4 {[%emt 0:01:35]} h4 {[%emt 0:01:
46]} 27. Rh1 {[%emt 0:01:40]} g5 {[%emt 0:05:03]} 28. f3 {[%emt 0:00:32]} Bxd5
{[%emt 0:00:07]} 29. exd5 {[%emt 0:00:58]} Nf8 {[%emt 0:01:53]} 30. Ka3 {[%emt
0:03:35]} Ke7 {[%emt 0:02:45]} 31. Kxa4 {[%emt 0:02:26]} Nd7 {[%emt 0:00:16]}
32. gxh4 {[%emt 0:05:14]} Rhc8 {[%emt 0:04:46]} 33. Kb3 {[%emt 0:00:01]} Nc5+ {
[%emt 0:00:12]} 34. Kc2 {[%emt 0:00:49]} Na4 {[%emt 0:00:09]} 35. Kd3 {[%emt 0:
01:08]} Rc7 {[%emt 0:00:41]} 36. hxg5 {[%emt 0:01:21]} Rbc8 {[%emt 0:00:08]}
37. Rh4 {[%emt 0:00:00]} Nb6 {[%emt 0:00:14]} 38. Ba6 {[%emt 0:01:58]} Rxc3+ {
[%emt 0:00:07]} 39. Ke2 {[%emt 0:00:01]} Rg8 {[%emt 0:03:03]} 40. Rg4 {[%emt 0:
00:34]} Rb3 {[%emt 0:01:06]} 41. Bb5 {[%emt 0:00:37]} Kf8 {[%emt 0:01:40]} 42.
Bc6 {[%emt 0:01:22]} Ra3 {[%emt 0:00:20]} 43. Kf2 {[%emt 0:01:02]} Kg7 {[%emt
0:00:08]} 44. Kg3 {[%emt 0:01:20]} Rh8 {[%emt 0:01:43]} 45. Rh4 {[%emt 0:00:18]
} Rxh4 {[%emt 0:01:59]} 46. Kxh4 {[%emt 0:00:01]} Rb3 {[%emt 0:00:16]} 47. b5 {
[%emt 0:00:12]} Rb4+ {[%emt 0:00:51]} 48. Kh5 {[%emt 0:00:47]} Nc8 {[%emt 0:00:
20]} 49. Re2 {[%emt 0:01:10]} Na7 {[%emt 0:00:42]} 50. Re4 {[%emt 0:00:34]} Rb2
{[%emt 0:00:08]} 51. f4 {[%emt 0:00:36]} Nxb5 {[%emt 0:01:07]} 52. Bxb5 {[%emt
0:00:38]} Rxb5 {[%emt 0:00:06]} 53. fxe5 {[%emt 0:00:28]} Rxd5 {[%emt 0:00:07]}
54. e6 {[%emt 0:00:10]} fxe6 {[%emt 0:00:42]} 55. Rxe6 {[%emt 0:00:01]} Re5 {
[%emt 0:00:24]} 56. Rxe5 {[%emt 0:00:47]} dxe5 {[%emt 0:00:09]} 57. Kh4 {[%emt
0:00:59]} Kg6 {[%emt 0:01:02]} 58. Kg4 {[%emt 0:00:05]} e4 {[%emt 0:00:09]} 59.
Kf4 {[%emt 0:00:11]} e3 {[%emt 0:00:15]} 60. Kxe3 {[%emt 0:00:07]} Kxg5 {[%emt
0:00:05]} 61. Kf3 1/2-1/2

[Event "US College Final 4-ch"]
[Site "New York"]
[Date "2015.03.28"]
[Round "1"]
[White "Akshayraj, Kore"]
[Black "Nyzhnyk, Illya"]
[Result "0-1"]
[ECO "C10"]
[WhiteElo "2472"]
[BlackElo "2622"]
[Annotator "Robot 1"]
[PlyCount "98"]
[EventDate "2015.??.??"]
[EventCountry "USA"]
[WhiteTeam "University Maryland"]
[BlackTeam "Webster University"]
[TimeControl "5400+30"]

1. e4 {[%emt 0:02:17]} e6 {[%emt 0:00:00]} 2. d4 {[%emt 0:01:32]} d5 {[%emt 0:
00:00]} 3. Nc3 {[%emt 0:02:56]} dxe4 {[%emt 0:00:00]} 4. Nxe4 {[%emt 0:00:07]}
Bd7 {[%emt 0:00:00]} 5. Nf3 {[%emt 0:02:09]} Bc6 {[%emt 0:00:00]} 6. Bd3 {
[%emt 0:02:47]} Nd7 {[%emt 0:00:00]} 7. Qe2 {[%emt 0:01:35]} Ngf6 {[%emt 0:01:
05]} 8. O-O {[%emt 0:02:17]} Be7 {[%emt 0:03:00]} 9. Ng3 {[%emt 0:14:20]} Bxf3
{[%emt 0:00:22]} 10. Qxf3 {[%emt 0:00:01]} c6 {[%emt 0:00:04]} 11. b3 {[%emt 0:
03:25]} O-O {[%emt 0:00:24]} 12. Bb2 {[%emt 0:00:07]} Qa5 {[%emt 0:00:07]} 13.
a3 {[%emt 0:01:45]} Rfe8 {[%emt 0:06:13]} 14. Rfe1 {[%emt 0:05:48]} Rad8 {
[%emt 0:00:19]} 15. c4 {[%emt 0:05:37]} Bf8 {[%emt 0:05:01]} 16. Rad1 {[%emt 0:
07:43]} Qg5 {[%emt 0:12:01]} 17. h3 {[%emt 0:00:51]} g6 {[%emt 0:00:48]} 18.
Bc1 {[%emt 0:05:55]} Qh4 {[%emt 0:01:35]} 19. Bf1 {[%emt 0:05:15]} Bh6 {[%emt
0:02:13]} 20. Nf5 {[%emt 0:10:03]} exf5 {[%emt 0:00:09]} 21. Rxe8+ {[%emt 0:02:
23]} Nxe8 {[%emt 0:04:04]} 22. g3 {[%emt 0:00:03]} Qe7 {[%emt 0:00:05]} 23.
Bxh6 {[%emt 0:00:14]} Qxa3 {[%emt 0:00:03]} 24. Qc3 {[%emt 0:11:40]} Qd6 {
[%emt 0:06:35]} 25. Qa5 {[%emt 0:05:41]} Qb8 {[%emt 0:07:50]} 26. Bf4 {[%emt 0:
00:28]} Qa8 {[%emt 0:00:18]} 27. d5 {[%emt 0:00:53]} Ndf6 {[%emt 0:00:50]} 28.
d6 {[%emt 0:01:20]} b6 {[%emt 0:01:30]} 29. Qe5 {[%emt 0:00:21]} Qc8 {[%emt 0:
00:59]} 30. c5 {[%emt 0:01:17]} Qe6 {[%emt 0:06:43]} 31. b4 {[%emt 0:00:34]}
Qxe5 {[%emt 0:26:04]} 32. Bxe5 {[%emt 0:00:03]} bxc5 {[%emt 0:00:09]} 33. bxc5
{[%emt 0:00:08]} Nd7 {[%emt 0:00:04]} 34. Bd4 {[%emt 0:00:05]} Ng7 {[%emt 0:00:
05]} 35. Be3 {[%emt 0:00:47]} Ne6 {[%emt 0:00:11]} 36. Rc1 {[%emt 0:00:13]} a5
{[%emt 0:01:28]} 37. Bg2 {[%emt 0:00:17]} Rc8 {[%emt 0:00:04]} 38. Kf1 {[%emt
0:00:08]} a4 {[%emt 0:00:25]} 39. Ke2 {[%emt 0:00:05]} a3 {[%emt 0:01:29]} 40.
Kd3 {[%emt 0:01:54]} a2 {[%emt 0:03:10]} 41. Kc4 {[%emt 0:00:42]} Ra8 {[%emt 0:
00:08]} 42. Bxc6 {[%emt 0:02:48]} Ne5+ {[%emt 0:00:08]} 43. Kd5 {[%emt 0:00:12]
} Nxc6 {[%emt 0:00:04]} 44. Kxc6 {[%emt 0:00:01]} a1=Q {[%emt 0:00:19]} 45.
Rxa1 {[%emt 0:00:03]} Rxa1 {[%emt 0:00:06]} 46. Kd7 {[%emt 0:00:22]} Ra7+ {
[%emt 0:06:02]} 47. Kc8 {[%emt 0:00:17]} Ra8+ {[%emt 0:00:25]} 48. Kb7 {[%emt
0:03:42]} Rd8 {[%emt 0:00:04]} 49. Kc6 {[%emt 0:00:45]} g5 {[%emt 0:05:22] Kd7}
0-1

[Event "US College Final 4-ch"]
[Site "New York"]
[Date "2015.03.28"]
[Round "1"]
[White "Robson, Ray"]
[Black "Ringoir, Tanguy"]
[Result "1-0"]
[ECO "C60"]
[WhiteElo "2656"]
[BlackElo "2526"]
[Annotator "Robot 1"]
[PlyCount "71"]
[EventDate "2015.??.??"]
[EventCountry "USA"]
[WhiteTeam "Webster University"]
[BlackTeam "University Maryland"]
[TimeControl "5400+30"]

1. e4 {[%emt 0:00:00]} e5 {[%emt 0:00:00]} 2. Nf3 {[%emt 0:00:00]} Nc6 {[%emt
0:00:00]} 3. Bb5 {[%emt 0:00:23]} Nge7 {[%emt 0:00:00]} 4. O-O {[%emt 0:01:49]}
g6 {[%emt 0:00:29]} 5. c3 {[%emt 0:01:00]} a6 {[%emt 0:00:35]} 6. Ba4 {[%emt 0:
00:35]} Bg7 {[%emt 0:00:53]} 7. d4 {[%emt 0:00:37]} exd4 {[%emt 0:00:09]} 8.
cxd4 {[%emt 0:00:16]} O-O {[%emt 0:00:13]} 9. d5 {[%emt 0:01:21]} Na5 {[%emt 0:
00:09]} 10. Nbd2 {[%emt 0:01:09]} c5 {[%emt 0:00:40]} 11. Rb1 {[%emt 0:01:59]}
b5 {[%emt 0:13:35]} 12. Bc2 {[%emt 0:00:32]} b4 {[%emt 0:07:27]} 13. Re1 {
[%emt 0:06:14]} d6 {[%emt 0:00:14]} 14. b3 {[%emt 0:03:02]} Re8 {[%emt 0:01:29]
} 15. Nf1 {[%emt 0:04:27]} Bd7 {[%emt 0:12:47]} 16. h3 {[%emt 0:18:25]} Nc8 {
[%emt 0:04:46]} 17. Ng3 {[%emt 0:03:11]} Na7 {[%emt 0:00:16]} 18. Bg5 {[%emt 0:
09:12]} Qb6 {[%emt 0:00:23]} 19. Bd3 {[%emt 0:05:26]} Nb5 {[%emt 0:06:38]} 20.
Bxb5 {[%emt 0:01:08]} axb5 {[%emt 0:00:03]} 21. Qd2 {[%emt 0:05:06]} Nb7 {
[%emt 0:01:15]} 22. Bh6 {[%emt 0:09:50]} f6 {[%emt 0:05:45]} 23. Bxg7 {[%emt 0:
01:14]} Kxg7 {[%emt 0:00:36]} 24. Re2 {[%emt 0:03:19]} Nd8 {[%emt 0:00:04]} 25.
Nh4 {[%emt 0:04:51]} Nf7 {[%emt 0:00:11]} 26. f4 {[%emt 0:01:25]} Re7 {[%emt 0:
15:38]} 27. Kh2 {[%emt 0:01:00]} Rae8 {[%emt 0:00:04]} 28. Qb2 {[%emt 0:02:26]}
Qb8 {[%emt 0:00:06]} 29. Rbe1 {[%emt 0:00:55]} Bc8 {[%emt 0:00:02]} 30. Re3 {
[%emt 0:00:41]} Nh6 {[%emt 0:00:45]} 31. Nf3 {[%emt 0:02:06]} Nf7 {[%emt 0:00:
02]} 32. Nh1 {[%emt 0:01:31]} Bb7 {[%emt 0:01:49]} 33. R3e2 {[%emt 0:00:27]}
Qa8 {[%emt 0:02:52]} 34. Nf2 {[%emt 0:01:02]} Qa3 {[%emt 0:00:07]} 35. Qa1 {
[%emt 0:00:36]} Bxd5 {[%emt 0:03:05]} 36. Ng4 {[%emt 0:00:28]} 1-0

[Event "US College Final 4-ch"]
[Site "New York"]
[Date "2015.03.28"]
[Round "1"]
[White "Holt, Conrad"]
[Black "Gorovets, Andrey"]
[Result "1-0"]
[ECO "D36"]
[WhiteElo "2530"]
[BlackElo "2518"]
[Annotator "Robot 1"]
[PlyCount "71"]
[EventDate "2015.??.??"]
[EventCountry "USA"]
[WhiteTeam "UT Dallas"]
[BlackTeam "Texas Tech University"]
[TimeControl "5400+30"]

1. d4 {[%emt 0:00:00]} d5 {[%emt 0:00:00]} 2. c4 {[%emt 0:01:10]} c6 {[%emt 0:
00:25]} 3. Nf3 {[%emt 0:00:07]} Nf6 {[%emt 0:00:05]} 4. Nc3 {[%emt 0:00:04]} e6
{[%emt 0:00:10]} 5. Bg5 {[%emt 0:00:07]} Nbd7 {[%emt 0:00:24]} 6. cxd5 {[%emt
0:00:11]} exd5 {[%emt 0:00:15]} 7. e3 {[%emt 0:00:32]} Be7 {[%emt 0:00:13]} 8.
Qc2 {[%emt 0:00:47]} Nh5 {[%emt 0:03:41]} 9. Bxe7 {[%emt 0:15:36]} Qxe7 {[%emt
0:01:02]} 10. Be2 {[%emt 0:00:22]} g6 {[%emt 0:10:16]} 11. O-O {[%emt 0:04:30]}
O-O {[%emt 0:02:35]} 12. Rae1 {[%emt 0:06:43]} Nb6 {[%emt 0:03:24]} 13. Nd2 {
[%emt 0:06:21]} Ng7 {[%emt 0:06:07]} 14. Nb3 {[%emt 0:00:40]} Bf5 {[%emt 0:02:
00]} 15. Qc1 {[%emt 0:01:52]} Ne8 {[%emt 0:16:07]} 16. Nc5 {[%emt 0:04:58]} Nd6
{[%emt 0:00:35]} 17. f3 {[%emt 0:12:00]} Rae8 {[%emt 0:17:41]} 18. Bd1 {[%emt
0:04:01]} Qg5 {[%emt 0:04:42]} 19. Bb3 {[%emt 0:01:36]} h5 {[%emt 0:08:31]} 20.
Re2 {[%emt 0:13:31]} Nd7 {[%emt 0:02:58]} 21. Qe1 {[%emt 0:13:20]} Nxc5 {[%emt
0:03:17]} 22. dxc5 {[%emt 0:00:06]} Bd3 {[%emt 0:10:06]} 23. f4 {[%emt 0:03:42]
} Qg4 {[%emt 0:00:24]} 24. cxd6 {[%emt 0:03:38]} Bxe2 {[%emt 0:00:05]} 25. Nxe2
{[%emt 0:00:28]} Rxe3 {[%emt 0:00:29]} 26. Bd1 {[%emt 0:00:09]} Rfe8 {[%emt 0:
01:13]} 27. Qf2 {[%emt 0:00:18]} Qd7 {[%emt 0:02:49]} 28. f5 {[%emt 0:00:54]}
Qxd6 {[%emt 0:00:27]} 29. fxg6 {[%emt 0:00:18]} fxg6 {[%emt 0:01:02]} 30. Qf7+
{[%emt 0:00:14]} Kh8 {[%emt 0:00:02]} 31. Nf4 {[%emt 0:00:18]} Rg8 {[%emt 0:01:
38]} 32. Bc2 {[%emt 0:02:24]} Re4 {[%emt 0:00:34]} 33. Bxe4 {[%emt 0:00:14]}
dxe4 {[%emt 0:00:01]} 34. Ne6 {[%emt 0:00:31]} Qe5 {[%emt 0:00:35]} 35. Qe7 {
[%emt 0:01:20]} Qxb2 {[%emt 0:00:51]} 36. Qg5 {[%emt 0:00:41]} 1-0